bitfinex/quotes_SOLUSD_20240615
["timestamp","ask_amount","ask_price","bid_price","bid_amount"]
[1718415829972,15.9684,143.45,143.36,15.9167]
[1718415829973,5.1607,143.39,143.36,5.1616]
[1718415830281,7.7411,143.39,143.37,2.5806]
[1718415830473,2.5804,143.39,143.37,2.5806]
[1718415831466,2.5804,143.39,143.36,23.2275]
[1718415831467,2.5806,143.38,143.36,2.5808]
[1718415831777,11.8315,143.39,143.37,2.5807]
[1718415831954,11.8315,143.39,143.36,15.4852]
[1718415832555,2.5805,143.38,143.36,7.7425]
[1718415832783,29.8941,143.39,143.36,7.7425]
[1718415833172,11.8315,143.39,143.37,2.5807]
[1718415833882,29.8945,143.39,143.36,15.4852]
[1718415834191,11.8314,143.39,143.37,2.5807]
[1718415835982,19.5734,143.38,143.35,23.2291]
[1718415836188,4.09,143.37,143.35,25.81]
[1718415836886,4.09,143.37,143.36,2.5809]
[1718415837060,2.5806,143.38,143.36,2.5809]
[1718415837258,4.09,143.38,143.37,2.5807]
[1718415837876,11.8314,143.39,143.37,2.5807]
[1718415838079,4.09,143.39,143.37,12.9034]
[1718415838359,4.09,143.39,143.37,15.4839]
[1718415838559,4.09,143.39,143.38,2.5805]
[1718415838781,45.2494,143.4,143.37,23.2263]
[1718415838981,30.8385,143.4,143.38,2.5805]
[1718415839286,34.9282,143.4,143.37,25.8068]
[1718415839481,2.5804,143.39,143.37,7.7418]
[1718415839786,2.5804,143.39,143.37,2.5805]
[1718415840090,7.7412,143.39,143.36,25.8081]
[1718415840382,2.5805,143.38,143.36,7.7423]
[1718415840684,23.2234,143.39,143.36,15.485]
[1718415840887,15.2404,143.43,143.37,7.7421]
[1718415841176,7.7405,143.4,143.38,2.5804]
[1718415841379,2.5802,143.4,143.38,2.5804]
[1718415841569,2.5802,143.4,143.38,7.7414]
[1718415842186,15.2404,143.43,143.36,4.09]
[1718415842394,27.3058,143.44,143.39,4.09]
[1718415842579,2.5798,143.42,143.4,7.7402]
[1718415843096,2.5798,143.42,143.4,2.58]
[1718415844081,23.2186,143.42,143.39,5.1605]
[1718415844489,2.58,143.41,143.39,7.7407]
[1718415844993,19.5692,143.42,143.4,2.5801]
[1718415845168,11.8297,143.42,143.4,2.5801]
[1718415845808,7.7397,143.42,143.4,2.5801]
[1718415845962,11.8297,143.42,143.4,2.5801]
[1718415846473,6.6699,143.42,143.4,2.5801]
[1718415846673,2.5799,143.42,143.4,2.5801]
[1718415846986,2.5799,143.42,143.4,7.7404]
[1718415847991,7.7395,143.42,143.4,2.5801]
[1718415848588,6.6697,143.43,143.41,2.5799]
[1718415848886,4.09,143.43,143.41,7.7398]
[1718415849068,6.6696,143.43,143.41,15.4797]
[1718415849486,11.829,143.43,143.41,2.5799]
[1718415849695,7.7394,143.42,143.4,2.58]
[1718415849898,27.3085,143.42,143.39,23.2223]
[1718415850196,2.58,143.41,143.39,2.5802]
[1718415850399,11.83,143.41,143.39,2.5802]
[1718415850774,6.67,143.41,143.39,7.7409]
[1718415851202,4.09,143.41,143.4,2.5801]
[1718415851578,11.8301,143.41,143.39,2.5802]
[1718415852580,6.67,143.41,143.39,7.7409]
[1718415853092,23.2188,143.42,143.39,7.741]
[1718415853093,4.09,143.4,143.39,7.741]
[1718415853332,7.7391,143.43,143.4,23.2212]
[1718415853604,11.8291,143.43,143.41,2.5799]
[1718415853805,6.6697,143.43,143.41,7.7399]
[1718415854612,6.6697,143.43,143.41,2.5799]
[1718415854613,19.5679,143.43,143.41,2.5799]
[1718415854786,2.5798,143.42,143.4,25.801]
[1718415855208,29.8865,143.43,143.41,2.58]
[1718415855387,11.829,143.43,143.41,2.58]
[1718415855883,19.5681,143.43,143.4,25.801]
[1718415856084,12.8993,143.42,143.39,25.8028]
[1718415856284,2.58,143.41,143.39,25.8028]
[1718415856509,25.7985,143.42,143.4,2.5801]
[1718415857006,2.58,143.41,143.39,25.8028]
[1718415857385,2.58,143.41,143.39,18.062]
[1718415857785,2.58,143.41,143.39,7.7407]
[1718415858491,2.5802,143.4,143.38,25.8042]
[1718415858691,4.09,143.41,143.37,23.2259]
[1718415858893,15.4812,143.4,143.38,2.5804]
[1718415859119,15.4812,143.4,143.37,25.8064]
[1718415859420,2.5803,143.39,143.37,25.8064]
[1718415859795,7.7408,143.4,143.38,2.5805]
[1718415861611,15.4814,143.4,143.38,2.5805]
[1718415861796,2.5803,143.39,143.37,25.8064]
[1718415862309,12.9011,143.4,143.37,25.8064]
[1718415862516,2.5803,143.39,143.37,25.8064]
[1718415862691,15.4814,143.4,143.37,25.8064]
[1718415863015,15.4814,143.4,143.38,2.5805]
[1718415863600,23.2207,143.41,143.38,15.483]
[1718415863790,2.5801,143.4,143.38,12.9025]
[1718415863987,2.5801,143.4,143.38,15.4829]
[1718415864594,27.3088,143.42,143.39,2.5803]
[1718415864811,27.3088,143.42,143.32,15.0698]
[1718415864812,7.7397,143.42,143.4,2.5801]
[1718415865195,2.5799,143.42,143.4,7.7404]
[1718415865414,7.7395,143.42,143.4,2.5801]
[1718415865918,7.7401,143.41,143.39,2.5803]
[1718415866114,7.7402,143.41,143.39,2.5803]
[1718415868619,5.1589,143.44,143.41,12.8997]
[1718415868920,7.7385,143.44,143.41,23.2197]
[1718415869107,2.5796,143.43,143.41,25.7995]
[1718415869505,2.5796,143.43,143.42,2.5798]
[1718415869821,2.5796,143.43,143.41,25.7995]
[1718415870318,2.5796,143.43,143.42,2.5798]
[1718415870506,2.5796,143.43,143.41,7.7396]
[1718415871016,7.7389,143.43,143.41,7.7396]
[1718415871222,7.7389,143.43,143.41,2.5798]
[1718415871519,2.5798,143.42,143.4,29.8907]
[1718415871721,2.5798,143.42,143.41,2.58]
[1718415872023,25.7967,143.43,143.41,2.58]
[1718415872208,7.7394,143.42,143.4,2.58]
[1718415872413,2.58,143.41,143.4,2.58]
[1718415872820,15.479,143.42,143.4,2.58]
[1718415873004,7.7395,143.42,143.4,2.58]
[1718415873339,12.9001,143.41,143.39,2.5803]
[1718415873530,7.7401,143.41,143.39,2.5803]
[1718415873898,2.5801,143.41,143.39,7.741]
[1718415874300,7.7401,143.41,143.39,7.741]
[1718415875521,2.5801,143.41,143.39,15.482]
[1718415875919,29.8892,143.42,143.4,2.5801]
[1718415876116,11.8297,143.42,143.4,2.5801]
[1718415876327,6.6699,143.42,143.4,7.7404]
[1718415876628,11.8292,143.43,143.41,2.58]
[1718415877028,11.8292,143.43,143.41,7.74]
[1718415877320,7.7392,143.43,143.41,7.74]
[1718415877810,7.7392,143.43,143.41,2.58]
[1718415878001,19.5682,143.43,143.41,2.58]
[1718415878201,2.5798,143.42,143.41,2.58]
[1718415878397,2.5798,143.42,143.4,7.7401]
[1718415878617,7.7394,143.42,143.4,7.7401]
[1718415878815,7.7394,143.42,143.4,2.58]
[1718415879499,7.7394,143.42,143.4,7.7403]
[1718415879702,11.8294,143.42,143.4,7.7403]
[1718415879919,6.6698,143.42,143.4,7.7403]
[1718415880330,2.5798,143.42,143.4,15.4808]
[1718415880512,4.09,143.42,143.41,2.58]
[1718415881425,6.6698,143.42,143.4,25.8015]
[1718415881609,4.09,143.42,143.41,2.58]
[1718415881808,2.5798,143.42,143.41,2.58]
[1718415882010,29.887,143.43,143.41,2.58]
[1718415883420,2.5798,143.42,143.4,23.2215]
[1718415883632,29.887,143.43,143.41,2.5799]
[1718415884528,11.8293,143.43,143.41,2.5799]
[1718415884829,11.8293,143.43,143.41,7.7399]
[1718415885722,27.3071,143.43,143.41,2.5799]
[1718415885917,29.8868,143.43,143.41,2.5799]
[1718415887524,11.8292,143.43,143.41,2.5799]
[1718415888643,11.8292,143.43,143.41,7.7399]
[1718415889141,6.6697,143.43,143.41,7.7399]
[1718415889839,6.6697,143.43,143.37,4.09]
[1718415889840,2.5802,143.4,143.38,7.7414]
[1718415890023,4.09,143.4,143.39,2.5803]
[1718415890532,11.8304,143.4,143.38,7.7413]
[1718415890919,11.8304,143.4,143.38,2.5804]
[1718415891127,6.6701,143.4,143.38,7.7414]
[1718415892246,6.6701,143.4,143.38,15.483]
[1718415892629,11.8305,143.4,143.38,2.5804]
[1718415892958,4.09,143.39,143.38,2.5804]
[1718415893535,4.09,143.39,143.38,7.7415]
[1718415893843,6.6701,143.4,143.39,2.5803]
[1718415894438,4.09,143.4,143.39,2.5803]
[1718415894715,4.09,143.4,143.38,23.2248]
[1718415894933,4.09,143.4,143.39,2.5803]
[1718415895620,6.6701,143.4,143.39,2.5803]
[1718415896451,6.6701,143.4,143.38,25.8052]
[1718415896642,2.5801,143.4,143.38,25.8052]
[1718415896967,6.6701,143.4,143.38,7.7415]
[1718415897751,4.09,143.39,143.38,7.7415]
[1718415899052,4.09,143.39,143.38,2.5804]
[1718415900029,4.09,143.39,143.38,7.7415]
[1718415900425,6.6704,143.39,143.37,25.8062]
[1718415900729,6.6704,143.39,143.38,2.5805]
[1718415901335,6.6704,143.39,143.37,25.8061]
[1718415901540,25.808,143.37,143.35,2.581]
[1718415901737,25.808,143.37,143.34,25.8121]
[1718415901738,6.6709,143.36,143.34,25.8121]
[1718415901947,6.6709,143.36,143.3,19.7494]
[1718415901948,27.3186,143.36,143.33,15.4884]
[1718415902252,6.6713,143.34,143.32,7.7447]
[1718415902468,6.6713,143.34,143.32,2.5815]
[1718415902631,2.5814,143.33,143.31,25.8168]
[1718415902936,4.09,143.33,143.31,12.9089]
[1718415903142,4.09,143.33,143.31,15.4906]
[1718415903357,11.8345,143.33,143.31,2.5817]
[1718415903533,6.6715,143.33,143.31,2.5817]
[1718415903950,4.09,143.33,143.32,2.5816]
[1718415904254,11.8336,143.35,143.33,2.5814]
[1718415904425,15.6634,143.4,143.26,43.044]
[1718415904625,7.7417,143.38,143.36,2.5808]
[1718415904827,2.5806,143.38,143.36,2.5808]
[1718415905055,7.7417,143.38,143.36,2.5808]
[1718415905358,2.5806,143.38,143.36,7.7426]
[1718415905648,6.6704,143.39,143.37,2.5806]
[1718415905954,6.6704,143.39,143.36,2.5808]
[1718415905955,6.6705,143.38,143.36,2.5808]
[1718415906733,11.8316,143.38,143.36,2.5808]
[1718415907044,19.5732,143.38,143.35,25.8101]
[1718415907244,12.9038,143.37,143.34,2.5811]
[1718415907450,2.5809,143.36,143.34,2.5811]
[1718415907641,6.6709,143.36,143.34,2.5811]
[1718415908633,4.09,143.36,143.35,2.581]
[1718415909650,11.8323,143.37,143.35,2.581]
[1718415910251,4.09,143.37,143.36,2.5809]
[1718415910455,6.6704,143.39,143.37,7.742]
[1718415910979,4.09,143.39,143.37,15.4842]
[1718415911259,29.8927,143.4,143.38,2.5805]
[1718415911470,38.8806,143.43,143.4,5.1603]
[1718415911639,2.5798,143.42,143.4,18.061]
[1718415911841,2.5798,143.43,143.41,7.7398]
[1718415912049,2.5798,143.43,143.41,2.5799]
[1718415912244,2.5798,143.43,143.41,7.7399]
[1718415913456,2.5791,143.46,143.44,2.5794]
[1718415913769,2.5791,143.46,143.43,23.2162]
[1718415913770,7.7374,143.46,143.43,23.2159]
[1718415913947,7.7374,143.46,143.44,2.5794]
[1718415914444,2.5793,143.45,143.43,25.7954]
[1718415914647,2.5793,143.45,143.43,7.7386]
[1718415914852,2.5793,143.45,143.43,15.4773]
[1718415915264,2.5793,143.45,143.43,7.7385]
[1718415915638,5.1582,143.46,143.43,5.1591]
[1718415915853,7.7374,143.46,143.44,2.5794]
[1718415916066,2.5793,143.45,143.43,7.7386]
[1718415916467,2.5793,143.45,143.43,2.5795]
[1718415916763,2.5793,143.45,143.43,7.7387]
[1718415916966,7.7379,143.45,143.43,2.5795]
[1718415917467,7.7379,143.45,143.43,2.5796]
[1718415917962,2.5794,143.45,143.43,2.5796]
[1718415918565,2.5794,143.45,143.43,7.7389]
[1718415918771,23.2127,143.46,143.38,0.17]
[1718415918772,7.737,143.47,143.44,23.2147]
[1718415918957,2.579,143.47,143.45,7.7376]
[1718415919260,23.2093,143.48,143.46,2.5791]
[1718415919261,25.7882,143.48,143.46,2.5791]
[1718415919438,2.5789,143.48,143.46,2.579]
[1718415919641,5.1565,143.51,143.48,7.7358]
[1718415919875,25.7826,143.51,143.49,2.5785]
[1718415920036,7.7348,143.51,143.49,2.5785]
[1718415920241,2.5783,143.51,143.49,2.5785]
[1718415920472,2.5784,143.5,143.48,25.787]
[1718415920678,15.4717,143.49,143.46,5.1581]
[1718415920976,15.4717,143.49,143.46,12.8954]
[1718415921147,15.4717,143.49,143.47,2.5789]
[1718415922577,2.5789,143.47,143.45,25.7923]
[1718415922784,7.7373,143.46,143.44,2.5793]
[1718415922943,7.7373,143.46,143.44,7.7382]
[1718415922944,2.5791,143.46,143.44,7.7382]
[1718415923283,23.2109,143.47,143.44,12.8973]
[1718415923444,2.5792,143.45,143.43,5.1591]
[1718415923781,2.5792,143.45,143.42,2.5797]
[1718415923782,2.5795,143.44,143.42,2.5797]
[1718415923982,7.7385,143.44,143.42,2.5797]
[1718415924353,2.5795,143.44,143.42,2.5797]
[1718415924671,2.5795,143.44,143.42,7.7393]
[1718415925046,25.7935,143.45,143.43,2.5796]
[1718415925247,25.7935,143.45,143.42,15.4786]
[1718415925453,25.7935,143.45,143.43,2.5796]
[1718415926179,7.7382,143.45,143.43,2.5796]
[1718415926986,25.7878,143.48,143.45,12.8961]
[1718415927156,7.7364,143.48,143.46,2.579]
[1718415927361,25.7863,143.49,143.47,2.5789]
[1718415927667,18.0479,143.51,143.47,7.7365]
[1718415927976,18.0479,143.51,143.49,2.5785]
[1718415927977,15.4695,143.51,143.49,2.5785]
[1718415928385,7.7347,143.51,143.49,2.5785]
[1718415928549,7.7347,143.51,143.48,2.5786]
[1718415928550,7.7351,143.5,143.48,2.5786]
[1718415928950,2.5785,143.49,143.47,25.7883]
[1718415929459,2.5785,143.49,143.47,7.7363]
[1718415929663,7.7356,143.49,143.47,2.5787]
[1718415930474,2.579,143.47,143.45,2.5792]
[1718415930650,15.4718,143.49,143.46,15.4741]
[1718415930845,2.5785,143.5,143.48,2.5787]
[1718415931054,7.7353,143.5,143.48,2.5787]
[1718415932544,7.7347,143.51,143.49,2.5785]
[1718415932749,7.7346,143.51,143.49,2.5785]
[1718415933871,2.5784,143.5,143.48,7.736]
[1718415935160,2.5784,143.5,143.48,15.4722]
[1718415935374,25.7825,143.51,143.49,2.5785]
[1718415936551,7.7347,143.51,143.49,2.5785]
[1718415938010,25.779,143.53,143.51,2.5781]
[1718415938173,25.7791,143.53,143.51,2.5782]
[1718415938562,7.7341,143.52,143.5,2.5782]
[1718415938986,2.578,143.52,143.5,7.7349]
[1718415939674,7.734,143.52,143.5,2.5782]
[1718415940591,7.7338,143.53,143.51,2.5781]
[1718415941088,7.7338,143.53,143.51,7.7345]
[1718415941387,2.5777,143.54,143.52,7.7338]
[1718415941694,10.3095,143.56,143.53,2.5777]
[1718415941990,2.5774,143.55,143.54,2.5775]
[1718415942195,15.4643,143.56,143.54,2.5775]
[1718415942406,7.7323,143.56,143.54,2.5775]
[1718415942575,7.7325,143.55,143.53,2.5777]
[1718415942774,2.5776,143.54,143.53,2.5777]
[1718415943494,15.4651,143.55,143.53,2.5777]
[1718415943670,7.7326,143.55,143.53,2.5777]
[1718415943993,7.7326,143.55,143.53,7.7334]
[1718415944204,2.5776,143.55,143.53,7.7334]
[1718415944372,25.7737,143.56,143.54,2.5776]
[1718415944571,2.5774,143.55,143.54,2.5776]
[1718415944793,2.5774,143.55,143.53,25.7782]
[1718415944998,7.7322,143.56,143.54,7.7329]
[1718415945213,2.5774,143.56,143.54,7.7329]
[1718415945497,2.5774,143.56,143.54,15.4657]
[1718415946104,25.7718,143.57,143.55,2.5774]
[1718415946287,25.7718,143.57,143.55,7.7323]
[1718415946288,7.7316,143.57,143.55,7.7323]
[1718415947216,7.7319,143.56,143.54,7.7326]
[1718415947382,15.5719,143.61,143.52,18.0458]
[1718415947383,5.1549,143.55,143.52,18.0458]
[1718415947590,7.7331,143.54,143.52,7.7339]
[1718415947783,7.7331,143.54,143.52,2.5779]
[1718415947981,2.5776,143.54,143.52,7.7338]
[1718415948383,25.7761,143.55,143.53,2.5778]
[1718415949014,7.7328,143.55,143.53,2.5778]
[1718415949195,7.7328,143.55,143.53,7.7335]
[1718415949799,23.1975,143.55,143.52,25.7793]
[1718415949997,2.5777,143.54,143.52,25.7793]
[1718415950200,23.1975,143.55,143.52,23.2015]
[1718415950387,2.5777,143.54,143.53,2.5778]
[1718415950586,2.5777,143.54,143.52,25.7793]
[1718415950796,2.5782,143.51,143.44,22.7607]
[1718415950998,7.7342,143.52,143.5,2.5783]
[1718415951197,7.7339,143.53,143.5,7.735]
[1718415951198,2.5779,143.53,143.5,7.735]
[1718415951395,21.9806,143.56,143.54,12.8882]
[1718415951396,15.5719,143.56,143.54,12.8882]
[1718415951727,12.8876,143.55,143.52,12.8899]
[1718415951890,23.1977,143.55,143.53,2.5778]
[1718415952096,2.5776,143.54,143.52,25.7796]
[1718415952416,2.5776,143.54,143.44,55.9507]
[1718415952417,2.5773,143.56,143.54,25.776]
[1718415952587,15.4638,143.56,143.54,2.5775]
[1718415952926,7.7323,143.55,143.53,7.7331]
[1718415953095,7.7323,143.55,143.53,2.5777]
[1718415953298,2.5777,143.54,143.52,15.4677]
[1718415953620,7.7326,143.55,143.53,7.7333]
[1718415953916,25.774,143.56,143.54,2.5776]
[1718415954730,2.5774,143.55,143.53,25.7782]
[1718415955513,100.0,143.58,143.45,0.17]
[1718415955711,100.0,143.58,143.44,55.9507]
[1718415955712,100.0,143.56,143.49,2.5785]
[1718415955931,15.4694,143.51,143.49,2.5785]
[1718415956107,12.8911,143.51,143.49,2.5785]
[1718415956420,7.7348,143.51,143.49,7.7356]
[1718415956594,2.5783,143.51,143.5,2.5783]
[1718415956791,2.5781,143.52,143.5,7.735]
[1718415957404,2.5781,143.52,143.5,15.4701]
[1718415958093,2.5781,143.52,143.5,7.735]
[1718415958596,2.5781,143.52,143.5,15.4699]
[1718415958987,7.7342,143.52,143.5,7.7349]
[1718415959191,2.5782,143.51,143.49,7.7354]
[1718415960412,2.5782,143.51,143.48,23.2076]
[1718415960413,23.2042,143.51,143.48,23.2076]
[1718415960620,2.5784,143.5,143.48,7.7358]
[1718415961314,25.7827,143.51,143.49,2.5785]
[1718415961488,7.735,143.51,143.49,2.5785]
[1718415962003,15.4696,143.51,143.49,2.5785]
[1718415962209,7.735,143.51,143.49,2.5785]
[1718415962608,7.735,143.51,143.49,7.7356]
[1718415963432,7.735,143.51,143.48,7.7358]
[1718415963433,2.5783,143.5,143.48,7.7358]
[1718415964233,2.5783,143.5,143.49,2.5785]
[1718415964437,2.5783,143.51,143.49,7.7355]
[1718415964615,2.5781,143.52,143.5,7.7349]
[1718415966527,7.7342,143.52,143.5,7.7349]
[1718415967516,7.7342,143.52,143.5,2.5782]
[1718415967831,7.7342,143.52,143.5,7.7349]
[1718415968132,7.7342,143.52,143.5,2.5782]
[1718415968320,7.7342,143.52,143.5,7.7349]
[1718415968521,2.5781,143.52,143.5,15.47]
[1718415968716,25.7792,143.53,143.51,2.5781]
[1718415969028,2.5778,143.53,143.52,2.5779]
[1718415969207,2.5778,143.53,143.51,25.7812]
[1718415969635,2.5778,143.53,143.51,7.7343]
[1718415969836,7.7335,143.53,143.51,7.7343]
[1718415970625,7.7335,143.53,143.51,2.578]
[1718415970809,15.4671,143.53,143.51,2.578]
[1718415971010,2.578,143.52,143.51,2.578]
[1718415971612,2.578,143.52,143.5,7.7347]
[1718415971825,15.4682,143.52,143.5,2.5782]
[1718415972217,2.5782,143.51,143.49,25.7845]
[1718415972431,7.7347,143.51,143.49,2.5784]
[1718415972810,15.4694,143.51,143.49,2.5784]
[1718415973010,7.7347,143.51,143.49,2.5784]
[1718415973229,7.7347,143.51,143.49,7.7355]
[1718415973937,18.047,143.52,143.47,15.4732]
[1718415973938,2.5786,143.49,143.47,15.4732]
[1718415974115,2.5786,143.49,143.47,15.4733]
[1718415974319,5.1566,143.51,143.48,7.7361]
[1718415974517,2.5782,143.51,143.49,15.471]
[1718415974716,0.17,143.54,143.48,7.7361]
[1718415974917,2.5783,143.51,143.49,15.4712]
[1718415975126,7.7348,143.51,143.49,2.5785]
[1718415975436,2.5784,143.5,143.49,2.5785]
[1718415975611,2.5782,143.51,143.49,7.7356]
[1718415976336,2.5782,143.51,143.49,12.8927]
[1718415976632,2.5782,143.51,143.5,2.5783]
[1718415977528,2.5785,143.5,143.48,7.7361]
[1718415977833,7.7353,143.5,143.48,7.7361]
[1718415978416,2.5785,143.5,143.48,7.7361]
[1718415978618,2.5785,143.5,143.48,15.4723]
[1718415979434,2.5785,143.5,143.49,2.5785]
[1718415980231,7.7353,143.5,143.48,2.5786]
[1718415980441,15.4705,143.5,143.48,2.5786]
[1718415980748,12.8941,143.48,143.45,5.1584]
[1718415980927,4.08,143.47,143.45,5.1584]
[1718415981128,6.659,143.47,143.45,7.7376]
[1718415981435,4.08,143.46,143.45,2.5792]
[1718415981947,4.08,143.46,143.45,25.7926]
[1718415982128,4.08,143.47,143.46,25.7907]
[1718415982327,4.08,143.48,143.47,2.5789]
[1718415982541,39.8174,143.5,143.47,12.8945]
[1718415982736,22.1292,143.5,143.48,2.5787]
[1718415982943,7.7355,143.5,143.48,2.5787]
[1718415983136,15.4707,143.5,143.48,2.5787]
[1718415983353,2.5785,143.49,143.47,25.7889]
[1718415983736,2.5785,143.49,143.47,7.7365]
[1718415985661,23.2045,143.51,143.48,5.1573]
[1718415985960,7.7351,143.5,143.48,7.7361]
[1718415986132,2.5785,143.49,143.47,25.7881]
[1718415986454,2.5785,143.49,143.47,5.1576]
[1718415986749,7.7356,143.49,143.47,7.7364]
[1718415987129,2.5785,143.49,143.47,15.4731]
[1718415987335,2.5785,143.49,143.47,7.7364]
[1718415987855,2.5787,143.48,143.46,7.7369]
[1718415988155,2.5788,143.48,143.46,2.579]
[1718415988642,2.5788,143.48,143.46,7.7372]
[1718415989031,7.7363,143.48,143.46,7.7372]
[1718415989632,2.5791,143.46,143.44,7.7381]
[1718415989845,2.5791,143.46,143.44,2.5793]
[1718415989846,7.7373,143.46,143.44,2.5793]
[1718415990139,25.7883,143.48,143.46,2.5791]
[1718415991129,7.7367,143.47,143.45,2.5791]
[1718415991330,2.5791,143.46,143.44,25.7937]
[1718415991757,15.4748,143.46,143.44,2.5794]
[1718415992655,7.7374,143.46,143.44,2.5794]
[1718415993641,2.5793,143.45,143.43,7.7386]
[1718415993842,2.5793,143.45,143.42,7.7392]
[1718415993843,2.5795,143.44,143.42,7.7392]
[1718415994061,23.214,143.45,143.42,12.8989]
[1718415994241,23.214,143.45,143.42,7.7392]
[1718415994242,2.5795,143.44,143.42,7.7392]
[1718415994438,2.5795,143.44,143.42,2.5797]
[1718415994663,2.5797,143.43,143.41,7.7398]
[1718415994842,0.17,143.46,143.36,15.4264]
[1718415995036,7.7401,143.41,143.39,2.5803]
[1718415995232,12.9,143.41,143.38,23.2243]
[1718415995538,6.2337,143.43,143.33,6.0576]
[1718415995739,6.2337,143.43,143.36,2.5808]
[1718415995740,2.5806,143.38,143.36,2.5808]
[1718415995937,2.5806,143.38,143.36,7.7425]
[1718415996353,2.5804,143.39,143.37,7.7421]
[1718415996558,25.8027,143.4,143.37,15.484]
[1718415996741,25.8027,143.4,143.38,2.5805]
[1718415996963,2.5803,143.39,143.37,7.742]
[1718415997341,2.5803,143.39,143.37,2.5806]
[1718415997546,15.4821,143.39,143.36,25.808]
[1718415997746,2.5805,143.38,143.36,25.808]
[1718415998256,15.4823,143.39,143.36,25.808]
[1718415998435,2.5805,143.38,143.36,2.5807]
[1718415998636,2.5804,143.39,143.37,15.4842]
[1718415998862,2.5803,143.39,143.38,2.5805]
[1718415999040,7.7406,143.4,143.38,2.5804]
[1718416000048,2.5803,143.39,143.38,2.5804]
[1718416000250,7.7406,143.4,143.38,2.5804]
[1718416001652,2.5804,143.39,143.37,25.8063]
[1718416001851,25.8019,143.4,143.38,2.5805]
[1718416002051,7.7407,143.4,143.38,2.5805]
[1718416002254,2.5803,143.4,143.38,7.7415]
[1718416002655,7.7407,143.4,143.38,2.5805]
[1718416002966,7.7407,143.4,143.38,7.7416]
[1718416003560,7.7407,143.4,143.38,2.5805]
[1718416003957,25.8012,143.41,143.39,2.5803]
[1718416004158,15.1888,143.43,143.39,2.5803]
[1718416004159,5.1597,143.42,143.4,2.5801]
[1718416004466,25.7984,143.42,143.4,2.5801]
[1718416005352,2.58,143.41,143.4,2.5801]
[1718416005556,7.74,143.41,143.39,7.7407]
[1718416006162,2.58,143.41,143.39,7.7407]
[1718416006580,2.58,143.41,143.4,2.5801]
[1718416007673,2.58,143.41,143.39,15.4817]
[1718416008178,25.7985,143.42,143.4,2.5801]
[1718416009256,7.7397,143.42,143.4,2.5801]
[1718416009453,2.5798,143.42,143.41,2.58]
[1718416010373,2.5798,143.42,143.4,25.8012]
[1718416010677,7.7394,143.42,143.4,2.5801]
[1718416010861,15.4789,143.42,143.4,2.5801]
[1718416011254,25.7972,143.43,143.41,2.58]
[1718416011663,2.5793,143.45,143.43,2.5795]
[1718416011875,7.7379,143.45,143.43,2.5795]
[1718416012065,2.5793,143.45,143.43,7.7387]
[1718416012665,12.8965,143.45,143.43,2.5795]
[1718416013484,15.4759,143.45,143.43,2.5795]
[1718416013656,7.7389,143.43,143.41,2.5798]
[1718416013854,2.5796,143.43,143.41,15.4798]
[1718416014061,7.7389,143.43,143.41,7.7398]
[1718416014466,2.5796,143.43,143.41,2.5798]
[1718416014673,7.739,143.43,143.41,2.5798]
[1718416015571,2.5796,143.43,143.41,15.4797]